[Event "Titled Tuesday Blitz August 22 Early 2023"]
[White "Egor_Koshulyan"]
[Black "Perez, Maximiliano"]
[BlackFideId "117234"]
[WhiteElo "2676"]
[BlackElo "2520"]
[Result "1-0"]
[Round "4"]
[TimeControl "180+1"]
[Date "2023.08.22"]
[WhiteClock "0:00:07"]
[BlackClock "0:00:00"]
[Board "81"]

1. f4 {[%clk 0:03:00]}  d5 {[%clk 0:02:58]} 2. Nf3 {[%clk 0:03:01]}  Nf6 {[%clk 0:02:59]} 3. g3 {[%clk 0:03:01]}  c5 {[%clk 0:02:55]} 4. Bg2 {[%clk 0:03:01]}  Nc6 {[%clk 0:02:56]} 5. O-O {[%clk 0:03:01]}  g6 {[%clk 0:02:50]} 6. d3 {[%clk 0:03:02]}  Bg7 {[%clk 0:02:49]} 7. Nc3 {[%clk 0:03:02]}  O-O {[%clk 0:02:49]} 8. e4 {[%clk 0:03:02]}  dxe4 {[%clk 0:02:35]} 9. dxe4 {[%clk 0:03:02]}  e5 {[%clk 0:02:32]} 10. fxe5 {[%clk 0:02:56]}  Ng4 {[%clk 0:02:31]} 11. Qd5 {[%clk 0:02:17]}  Ncxe5 {[%clk 0:02:11]} 12. Kh1 {[%clk 0:02:12]}  Be6 {[%clk 0:01:49]} 13. Qxc5 {[%clk 0:01:32]}  Nxf3 {[%clk 0:01:46]} 14. Bxf3 {[%clk 0:01:33]}  Bd4 {[%clk 0:01:46]} 15. Qb5 {[%clk 0:01:02]}  Nf2+ {[%clk 0:01:41]} 16. Rxf2 {[%clk 0:01:03]}  Bxf2 {[%clk 0:01:39]} 17. Bh6 {[%clk 0:01:04]}  Re8 {[%clk 0:01:33]} 18. Rd1 {[%clk 0:01:04]}  Qf6 {[%clk 0:01:32]} 19. Bg2 {[%clk 0:01:01]}  Bg4 {[%clk 0:01:32]} 20. Rf1 {[%clk 0:01:00]}  Qb6 {[%clk 0:01:30]} 21. Qg5 {[%clk 0:00:59]}  Be6 {[%clk 0:01:26]} 22. Na4 {[%clk 0:00:54]}  Qd4 {[%clk 0:00:42]} 23. c3 {[%clk 0:00:54]}  Qd8 {[%clk 0:00:42]} 24. Rxf2 {[%clk 0:00:46]}  Bxa2 {[%clk 0:00:39]} 25. h4 {[%clk 0:00:21]}  Re6 {[%clk 0:00:33]} 26. Nc5 {[%clk 0:00:20]}  Rb6 {[%clk 0:00:28]} 27. e5 {[%clk 0:00:17]}  Qxg5 {[%clk 0:00:20]} 28. Bxg5 {[%clk 0:00:17]}  Re8 {[%clk 0:00:19]} 29. Bf6 {[%clk 0:00:17]}  a5 {[%clk 0:00:16]} 30. Nxb7 {[%clk 0:00:16]}  a4 {[%clk 0:00:15]} 31. Nc5 {[%clk 0:00:16]}  a3 {[%clk 0:00:15]} 32. bxa3 {[%clk 0:00:15]}  Rc8 {[%clk 0:00:15]} 33. Ne4 {[%clk 0:00:14]}  Rb1+ {[%clk 0:00:13]} 34. Kh2 {[%clk 0:00:14]}  Be6 {[%clk 0:00:12]} 35. Ng5 {[%clk 0:00:09]}  Ra1 {[%clk 0:00:11]} 36. Nxe6 {[%clk 0:00:09]}  fxe6 {[%clk 0:00:12]} 37. Bh3 {[%clk 0:00:10]}  Rc6 {[%clk 0:00:12]} 38. Be7 {[%clk 0:00:10]}  Kg7 {[%clk 0:00:09]} 39. Bf8+ {[%clk 0:00:10]}  Kg8 {[%clk 0:00:09]} 40. Bd6 {[%clk 0:00:10]}  Kg7 {[%clk 0:00:06]} 41. Bxe6 {[%clk 0:00:10]}  Re1 {[%clk 0:00:02]} 42. Bf8+ {[%clk 0:00:09]}  Kh8 {[%clk 0:00:02]} 43. Bd6 {[%clk 0:00:09]}  Kg7 {[%clk 0:00:02]} 44. Rf7+ {[%clk 0:00:09]}  Kh6 {[%clk 0:00:02]} 45. Bf8+ {[%clk 0:00:09]}  Kh5 {[%clk 0:00:00]} 46. Bd5 {[%clk 0:00:07]} 1-0


[Site "https://www.chess.com"]

[Event "Titled Tuesday Blitz August 22 Early 2023"]
[White "Kovalevsky, Stanislav"]
[Black "Djordjevic, Vuk"]
[WhiteFideId "13508598"]
[BlackFideId "902098"]
[WhiteElo "2519"]
[BlackElo "2669"]
[Result "0-1"]
[Round "4"]
[TimeControl "180+1"]
[Date "2023.08.22"]
[WhiteClock "0:00:02"]
[BlackClock "0:01:24"]
[Board "82"]

1. c4 {[%clk 0:03:00]}  e5 {[%clk 0:02:59]} 2. Nc3 {[%clk 0:03:01]}  Nc6 {[%clk 0:03:00]} 3. g3 {[%clk 0:03:01]}  g6 {[%clk 0:03:00]} 4. Bg2 {[%clk 0:03:02]}  d6 {[%clk 0:03:01]} 5. h4 {[%clk 0:03:02]}  h6 {[%clk 0:03:01]} 6. d3 {[%clk 0:03:02]}  Be6 {[%clk 0:03:00]} 7. Nf3 {[%clk 0:02:59]}  Qd7 {[%clk 0:03:00]} 8. Be3 {[%clk 0:02:57]}  Nge7 {[%clk 0:02:57]} 9. a3 {[%clk 0:02:55]}  Bg7 {[%clk 0:02:56]} 10. b4 {[%clk 0:02:51]}  a6 {[%clk 0:02:42]} 11. Rb1 {[%clk 0:02:22]}  O-O {[%clk 0:02:34]} 12. Qc1 {[%clk 0:02:01]}  Kh7 {[%clk 0:02:31]} 13. h5 {[%clk 0:01:54]}  g5 {[%clk 0:02:27]} 14. Ne4 {[%clk 0:01:29]}  f5 {[%clk 0:02:03]} 15. Nexg5+ {[%clk 0:01:24]}  hxg5 {[%clk 0:02:02]} 16. Nxg5+ {[%clk 0:01:22]}  Kh8 {[%clk 0:02:02]} 17. h6 {[%clk 0:00:48]}  Bf6 {[%clk 0:01:59]} 18. b5 {[%clk 0:00:42]}  axb5 {[%clk 0:01:53]} 19. cxb5 {[%clk 0:00:42]}  Na5 {[%clk 0:01:49]} 20. Nxe6 {[%clk 0:00:33]}  Qxe6 {[%clk 0:01:49]} 21. Qxc7 {[%clk 0:00:32]}  Rfc8 {[%clk 0:01:29]} 22. Qb6 {[%clk 0:00:31]}  Nd5 {[%clk 0:01:29]} 23. Bxd5 {[%clk 0:00:24]}  Qxd5 {[%clk 0:01:30]} 24. Rh5 {[%clk 0:00:19]}  Bd8 {[%clk 0:01:30]} 25. Bg5 {[%clk 0:00:08]}  Bxb6 {[%clk 0:01:27]} 26. Bf6+ {[%clk 0:00:06]}  Kh7 {[%clk 0:01:27]} 27. Rg5 {[%clk 0:00:02]}  Qh1+ {[%clk 0:01:26]} 28. Kd2 {[%clk 0:00:02]}  Nb3+ {[%clk 0:01:25]} 29. Rxb3 {[%clk 0:00:02]}  Qc1# {[%clk 0:01:24]} 0-1


[Site "https://www.chess.com"]

[Event "Titled Tuesday Blitz August 22 Early 2023"]
[White "Palchuk, Andrii"]
[Black "Koutlas, Nikolaos"]
[WhiteFideId "14176688"]
[BlackFideId "25827138"]
[WhiteElo "2647"]
[BlackElo "2513"]
[Result "1-0"]
[Round "4"]
[TimeControl "180+1"]
[Date "2023.08.22"]
[WhiteClock "0:00:26"]
[BlackClock "0:00:56"]
[Board "87"]

1. d4 {[%clk 0:02:58]}  d5 {[%clk 0:02:57]} 2. Nc3 {[%clk 0:02:58]}  Bf5 {[%clk 0:02:55]} 3. f3 {[%clk 0:02:56]}  c5 {[%clk 0:02:53]} 4. dxc5 {[%clk 0:02:42]}  d4 {[%clk 0:02:52]} 5. e4 {[%clk 0:02:42]}  Bg6 {[%clk 0:02:44]} 6. Nb5 {[%clk 0:01:55]}  e5 {[%clk 0:02:28]} 7. c3 {[%clk 0:01:56]}  Bxc5 {[%clk 0:02:25]} 8. cxd4 {[%clk 0:01:38]}  exd4 {[%clk 0:02:25]} 9. Bf4 {[%clk 0:01:32]}  Qa5+ {[%clk 0:02:16]} 10. Bd2 {[%clk 0:01:28]}  Qb6 {[%clk 0:02:14]} 11. Rc1 {[%clk 0:01:09]}  Nc6 {[%clk 0:02:12]} 12. Rxc5 {[%clk 0:01:09]}  Qxc5 {[%clk 0:02:11]} 13. Nc7+ {[%clk 0:01:08]}  Kd7 {[%clk 0:02:11]} 14. Nxa8 {[%clk 0:01:09]}  Nf6 {[%clk 0:02:11]} 15. b4 {[%clk 0:01:01]}  Qh5 {[%clk 0:01:52]} 16. b5 {[%clk 0:00:53]}  Ne5 {[%clk 0:01:51]} 17. Bf4 {[%clk 0:00:49]}  d3 {[%clk 0:01:38]} 18. Bxd3 {[%clk 0:00:36]}  Rxa8 {[%clk 0:01:37]} 19. Be2+ {[%clk 0:00:36]}  Ke8 {[%clk 0:01:34]} 20. g4 {[%clk 0:00:32]}  Qh4+ {[%clk 0:01:33]} 21. Bg3 {[%clk 0:00:32]}  Nxf3+ {[%clk 0:01:30]} 22. Bxf3 {[%clk 0:00:27]}  Qg5 {[%clk 0:01:29]} 23. Ne2 {[%clk 0:00:26]}  Rd8 {[%clk 0:01:22]} 24. Qc1 {[%clk 0:00:26]}  Qxb5 {[%clk 0:01:19]} 25. O-O {[%clk 0:00:26]}  Nxe4 {[%clk 0:01:17]} 26. Bxe4 {[%clk 0:00:25]}  Bxe4 {[%clk 0:01:17]} 27. Nc3 {[%clk 0:00:26]}  Qb6+ {[%clk 0:00:56]} 28. Bf2 {[%clk 0:00:26]} 1-0


[Site "https://www.chess.com"]

[Event "Titled Tuesday Blitz August 22 Early 2023"]
[White "Agibileg, Uurtsaikh"]
[Black "Miszler, Levente"]
[WhiteFideId "4901606"]
[BlackFideId "763276"]
[WhiteElo "2644"]
[BlackElo "2499"]
[Result "1/2-1/2"]
[Round "4"]
[TimeControl "180+1"]
[Date "2023.08.22"]
[WhiteClock "0:00:04"]
[BlackClock "0:00:43"]
[Board "90"]

1. d4 {[%clk 0:03:00]}  Nf6 {[%clk 0:02:59]} 2. c4 {[%clk 0:02:58]}  c5 {[%clk 0:02:59]} 3. d5 {[%clk 0:02:57]}  b5 {[%clk 0:02:59]} 4. Qc2 {[%clk 0:02:55]}  bxc4 {[%clk 0:02:55]} 5. e4 {[%clk 0:02:55]}  e6 {[%clk 0:02:54]} 6. Bxc4 {[%clk 0:02:54]}  exd5 {[%clk 0:02:54]} 7. exd5 {[%clk 0:02:54]}  d6 {[%clk 0:02:53]} 8. Ne2 {[%clk 0:02:49]}  Be7 {[%clk 0:02:53]} 9. O-O {[%clk 0:02:50]}  O-O {[%clk 0:02:54]} 10. Nbc3 {[%clk 0:02:47]}  Nbd7 {[%clk 0:02:54]} 11. Ng3 {[%clk 0:02:34]}  Ne5 {[%clk 0:02:53]} 12. Be2 {[%clk 0:02:33]}  Bb7 {[%clk 0:02:52]} 13. f4 {[%clk 0:02:26]}  Ned7 {[%clk 0:02:49]} 14. Bf3 {[%clk 0:02:23]}  Nb6 {[%clk 0:02:49]} 15. Rd1 {[%clk 0:02:16]}  c4 {[%clk 0:02:48]} 16. Be3 {[%clk 0:02:14]}  Rc8 {[%clk 0:02:47]} 17. Nf5 {[%clk 0:02:11]}  Nfd7 {[%clk 0:02:46]} 18. Bd4 {[%clk 0:02:05]}  Bf6 {[%clk 0:02:38]} 19. Nxd6 {[%clk 0:02:03]}  Bxd4+ {[%clk 0:02:38]} 20. Rxd4 {[%clk 0:02:01]}  Qf6 {[%clk 0:02:39]} 21. Ncb5 {[%clk 0:02:00]}  Ba6 {[%clk 0:02:31]} 22. Ne4 {[%clk 0:01:54]}  Qg6 {[%clk 0:02:28]} 23. Nbd6 {[%clk 0:01:53]}  Rc5 {[%clk 0:02:25]} 24. f5 {[%clk 0:01:53]}  Qh6 {[%clk 0:02:15]} 25. Re1 {[%clk 0:01:49]}  Rxd5 {[%clk 0:02:11]} 26. Rxd5 {[%clk 0:01:45]}  Nxd5 {[%clk 0:02:11]} 27. f6 {[%clk 0:01:45]}  N7xf6 {[%clk 0:02:09]} 28. Nf5 {[%clk 0:01:45]}  Qf4 {[%clk 0:02:02]} 29. Nc5 {[%clk 0:01:30]}  Bc8 {[%clk 0:01:51]} 30. Ng3 {[%clk 0:01:07]}  Qd4+ {[%clk 0:01:43]} 31. Qf2 {[%clk 0:01:07]}  Qxf2+ {[%clk 0:01:44]} 32. Kxf2 {[%clk 0:01:08]}  Bg4 {[%clk 0:01:45]} 33. Bxd5 {[%clk 0:00:53]}  Nxd5 {[%clk 0:01:44]} 34. Re4 {[%clk 0:00:53]}  Rc8 {[%clk 0:01:32]} 35. Rxc4 {[%clk 0:00:40]}  Be6 {[%clk 0:01:31]} 36. b3 {[%clk 0:00:32]}  Nb6 {[%clk 0:01:27]} 37. Rc1 {[%clk 0:00:30]}  a5 {[%clk 0:01:23]} 38. Ne2 {[%clk 0:00:25]}  a4 {[%clk 0:01:19]} 39. Nxe6 {[%clk 0:00:22]}  Rxc1 {[%clk 0:01:14]} 40. Nxc1 {[%clk 0:00:23]}  axb3 {[%clk 0:01:15]} 41. Nxb3 {[%clk 0:00:22]}  fxe6 {[%clk 0:01:14]} 42. Nc5 {[%clk 0:00:22]}  Kf7 {[%clk 0:01:14]} 43. a4 {[%clk 0:00:22]}  Nc4 {[%clk 0:01:10]} 44. Kf3 {[%clk 0:00:20]}  Ke7 {[%clk 0:01:08]} 45. Ke4 {[%clk 0:00:19]}  Kd6 {[%clk 0:01:09]} 46. Nb3 {[%clk 0:00:19]}  Kc6 {[%clk 0:01:06]} 47. Kd4 {[%clk 0:00:18]}  Nb6 {[%clk 0:01:04]} 48. a5 {[%clk 0:00:19]}  Nd7 {[%clk 0:01:04]} 49. Kc4 {[%clk 0:00:18]}  Ne5+ {[%clk 0:01:02]} 50. Kb4 {[%clk 0:00:17]}  Nd3+ {[%clk 0:01:02]} 51. Kc3 {[%clk 0:00:16]}  Nf4 {[%clk 0:01:00]} 52. g3 {[%clk 0:00:15]}  Nd5+ {[%clk 0:01:00]} 53. Kc4 {[%clk 0:00:15]}  Ne3+ {[%clk 0:01:00]} 54. Kd4 {[%clk 0:00:14]}  Nf1 {[%clk 0:01:01]} 55. Ke5 {[%clk 0:00:12]}  Nxh2 {[%clk 0:01:00]} 56. Kxe6 {[%clk 0:00:12]}  g5 {[%clk 0:00:53]} 57. Kf5 {[%clk 0:00:11]}  g4 {[%clk 0:00:50]} 58. Kg5 {[%clk 0:00:08]}  Kb5 {[%clk 0:00:50]} 59. Kh4 {[%clk 0:00:06]}  Ka6 {[%clk 0:00:45]} 60. Kh5 {[%clk 0:00:07]}  Kb5 {[%clk 0:00:45]} 61. Kh4 {[%clk 0:00:04]}  Ka6 {[%clk 0:00:45]} 62. Kg5 {[%clk 0:00:04]}  Kb5 {[%clk 0:00:43]} 63. Kh4 {[%clk 0:00:04]} 1/2-1/2


[Site "https://www.chess.com"]

[Event "Titled Tuesday Blitz August 22 Early 2023"]
[White "Amartuvshin, Ganzorig"]
[Black "Flynn, Jacob"]
[WhiteFideId "4902548"]
[BlackFideId "2509393"]
[WhiteElo "2640"]
[BlackElo "2488"]
[Result "1-0"]
[Round "4"]
[TimeControl "180+1"]
[Date "2023.08.22"]
[WhiteClock "0:00:05"]
[BlackClock "0:00:00"]
[Board "91"]

1. d4 {[%clk 0:03:00]}  d5 {[%clk 0:02:59]} 2. c4 {[%clk 0:03:01]}  e6 {[%clk 0:02:59]} 3. Nc3 {[%clk 0:03:01]}  Nf6 {[%clk 0:03:00]} 4. Nf3 {[%clk 0:03:00]}  c5 {[%clk 0:02:59]} 5. cxd5 {[%clk 0:02:59]}  exd5 {[%clk 0:03:00]} 6. g3 {[%clk 0:02:57]}  Nc6 {[%clk 0:03:00]} 7. Bg2 {[%clk 0:02:58]}  cxd4 {[%clk 0:03:01]} 8. Nxd4 {[%clk 0:02:58]}  Bc5 {[%clk 0:03:01]} 9. Nb3 {[%clk 0:02:58]}  Bb6 {[%clk 0:03:02]} 10. O-O {[%clk 0:02:58]}  d4 {[%clk 0:03:03]} 11. Na4 {[%clk 0:02:57]}  O-O {[%clk 0:03:04]} 12. Bg5 {[%clk 0:02:54]}  Re8 {[%clk 0:03:02]} 13. Re1 {[%clk 0:02:36]}  h6 {[%clk 0:02:56]} 14. Bxf6 {[%clk 0:02:29]}  Qxf6 {[%clk 0:02:57]} 15. Nxb6 {[%clk 0:02:27]}  axb6 {[%clk 0:02:58]} 16. Bxc6 {[%clk 0:02:24]}  bxc6 {[%clk 0:02:57]} 17. Qxd4 {[%clk 0:02:24]}  Qd8 {[%clk 0:02:58]} 18. Qc3 {[%clk 0:02:18]}  Qc7 {[%clk 0:02:56]} 19. a4 {[%clk 0:02:15]}  Bb7 {[%clk 0:02:40]} 20. a5 {[%clk 0:02:13]}  bxa5 {[%clk 0:02:39]} 21. Nxa5 {[%clk 0:02:11]}  c5 {[%clk 0:02:26]} 22. b4 {[%clk 0:02:07]}  Rac8 {[%clk 0:02:03]} 23. Nxb7 {[%clk 0:02:01]}  Qxb7 {[%clk 0:02:04]} 24. bxc5 {[%clk 0:01:45]}  Qb5 {[%clk 0:01:18]} 25. Ra5 {[%clk 0:01:30]}  Qc6 {[%clk 0:01:18]} 26. e3 {[%clk 0:01:26]}  h5 {[%clk 0:01:17]} 27. h4 {[%clk 0:01:25]}  Re4 {[%clk 0:01:15]} 28. Rb1 {[%clk 0:01:19]}  Qd5 {[%clk 0:01:11]} 29. c6 {[%clk 0:01:16]}  Qe6 {[%clk 0:00:45]} 30. Rxh5 {[%clk 0:01:11]}  Rc4 {[%clk 0:00:43]} 31. Qd3 {[%clk 0:01:11]}  g6 {[%clk 0:00:37]} 32. Rd5 {[%clk 0:01:09]}  R8xc6 {[%clk 0:00:31]} 33. Rd8+ {[%clk 0:01:09]}  Kg7 {[%clk 0:00:30]} 34. Rbb8 {[%clk 0:01:07]}  Qh3 {[%clk 0:00:22]} 35. Rg8+ {[%clk 0:00:49]}  Kh7 {[%clk 0:00:13]} 36. Rh8+ {[%clk 0:00:44]}  Kg7 {[%clk 0:00:13]} 37. Rbg8+ {[%clk 0:00:38]}  Kf6 {[%clk 0:00:14]} 38. Qd8+ {[%clk 0:00:37]}  Ke5 {[%clk 0:00:13]} 39. Re8+ {[%clk 0:00:37]}  Re6 {[%clk 0:00:11]} 40. Qg5+ {[%clk 0:00:28]}  Ke4 {[%clk 0:00:06]} 41. Qf4+ {[%clk 0:00:26]}  Kd3 {[%clk 0:00:04]} 42. Rd8+ {[%clk 0:00:25]}  Kc3 {[%clk 0:00:03]} 43. Rc8 {[%clk 0:00:25]}  Rec6 {[%clk 0:00:01]} 44. Rxc6 {[%clk 0:00:07]}  Rxc6 {[%clk 0:00:02]} 45. Qd4+ {[%clk 0:00:06]}  Kc2 {[%clk 0:00:01]} 46. Rd8 {[%clk 0:00:05]}  Qe6 {[%clk 0:00:01]} 47. Qd2+ {[%clk 0:00:05]}  Kb3 {[%clk 0:00:00]} 48. Rb8+ {[%clk 0:00:05]} 1-0


[Site "https://www.chess.com"]

[Event "Titled Tuesday Blitz August 22 Early 2023"]
[White "Czopor, Maciej"]
[Black "Perera Alfonso, Rene Humberto"]
[WhiteFideId "21805431"]
[BlackFideId "3514722"]
[WhiteElo "2639"]
[BlackElo "2474"]
[Result "0-1"]
[Round "4"]
[TimeControl "180+1"]
[Date "2023.08.22"]
[WhiteClock "0:00:10"]
[BlackClock "0:00:23"]
[Board "92"]

1. d4 {[%clk 0:02:59]}  d5 {[%clk 0:02:59]} 2. c4 {[%clk 0:02:58]}  c6 {[%clk 0:02:59]} 3. Nc3 {[%clk 0:02:58]}  Nf6 {[%clk 0:02:59]} 4. Nf3 {[%clk 0:02:59]}  dxc4 {[%clk 0:02:58]} 5. a4 {[%clk 0:02:55]}  Bf5 {[%clk 0:02:57]} 6. Nh4 {[%clk 0:02:54]}  Bc8 {[%clk 0:02:55]} 7. e4 {[%clk 0:02:50]}  e5 {[%clk 0:02:51]} 8. dxe5 {[%clk 0:02:45]}  Qxd1+ {[%clk 0:02:49]} 9. Kxd1 {[%clk 0:02:44]}  Ng4 {[%clk 0:02:49]} 10. Ke1 {[%clk 0:02:20]}  Nxe5 {[%clk 0:02:46]} 11. Bf4 {[%clk 0:02:12]}  Nbd7 {[%clk 0:02:28]} 12. Rd1 {[%clk 0:01:57]}  Bb4 {[%clk 0:02:18]} 13. Nf5 {[%clk 0:01:55]}  O-O {[%clk 0:01:59]} 14. Be2 {[%clk 0:01:26]}  Re8 {[%clk 0:01:56]} 15. Nd6 {[%clk 0:01:26]}  Bxd6 {[%clk 0:01:50]} 16. Rxd6 {[%clk 0:01:27]}  f6 {[%clk 0:01:36]} 17. Kd2 {[%clk 0:01:20]}  Kf8 {[%clk 0:01:22]} 18. Kc2 {[%clk 0:01:17]}  Nc5 {[%clk 0:01:20]} 19. Bxe5 {[%clk 0:00:57]}  Rxe5 {[%clk 0:01:19]} 20. Rd4 {[%clk 0:00:50]}  b5 {[%clk 0:00:56]} 21. axb5 {[%clk 0:00:31]}  cxb5 {[%clk 0:00:57]} 22. Nxb5 {[%clk 0:00:32]}  Nxe4 {[%clk 0:00:53]} 23. f4 {[%clk 0:00:06]}  Rxb5 {[%clk 0:00:43]} 24. Rxe4 {[%clk 0:00:06]}  Bf5 {[%clk 0:00:42]} 25. Bxc4 {[%clk 0:00:07]}  Bxe4+ {[%clk 0:00:41]} 26. Kc3 {[%clk 0:00:07]}  Rc8 {[%clk 0:00:38]} 27. Kd4 {[%clk 0:00:07]}  Rb4 {[%clk 0:00:34]} 28. b3 {[%clk 0:00:07]}  Bf5 {[%clk 0:00:33]} 29. Ra1 {[%clk 0:00:07]}  Rb7 {[%clk 0:00:32]} 30. Ra5 {[%clk 0:00:08]}  g6 {[%clk 0:00:31]} 31. h3 {[%clk 0:00:08]}  Rd7+ {[%clk 0:00:29]} 32. Kc3 {[%clk 0:00:08]}  Be6 {[%clk 0:00:29]} 33. Ra6 {[%clk 0:00:08]}  Bxc4 {[%clk 0:00:28]} 34. bxc4 {[%clk 0:00:09]}  Rdc7 {[%clk 0:00:28]} 35. Rxf6+ {[%clk 0:00:09]}  Ke7 {[%clk 0:00:28]} 36. Ra6 {[%clk 0:00:10]}  Rxc4+ {[%clk 0:00:27]} 37. Kd3 {[%clk 0:00:11]}  R8c7 {[%clk 0:00:25]} 38. g4 {[%clk 0:00:10]}  Rxf4 {[%clk 0:00:25]} 39. Ke3 {[%clk 0:00:11]}  Rb4 {[%clk 0:00:24]} 40. Kf3 {[%clk 0:00:11]}  Rc3+ {[%clk 0:00:24]} 41. Ke2 {[%clk 0:00:10]}  Rb2+ {[%clk 0:00:24]} 42. Kd1 {[%clk 0:00:11]}  Rxh3 {[%clk 0:00:23]} 43. Rxa7+ {[%clk 0:00:10]}  Kf6 {[%clk 0:00:23]} 0-1


[Site "https://www.chess.com"]

[Event "Titled Tuesday Blitz August 22 Early 2023"]
[White "Mendez Fortes, Eduardo Jesus"]
[Black "Begunov, Konstantin"]
[WhiteFideId "3502376"]
[BlackFideId "4118510"]
[WhiteElo "2631"]
[BlackElo "2443"]
[Result "1/2-1/2"]
[Round "4"]
[TimeControl "180+1"]
[Date "2023.08.22"]
[WhiteClock "0:01:15"]
[BlackClock "0:00:35"]
[Board "97"]

1. e4 {[%clk 0:03:00]}  c5 {[%clk 0:02:59]} 2. Nf3 {[%clk 0:02:59]}  d6 {[%clk 0:02:58]} 3. d4 {[%clk 0:03:00]}  cxd4 {[%clk 0:02:59]} 4. Nxd4 {[%clk 0:03:01]}  Nf6 {[%clk 0:03:00]} 5. Nc3 {[%clk 0:03:01]}  a6 {[%clk 0:03:00]} 6. Be3 {[%clk 0:03:01]}  Ng4 {[%clk 0:02:59]} 7. Bg5 {[%clk 0:02:57]}  Nc6 {[%clk 0:02:59]} 8. Qd2 {[%clk 0:02:47]}  h6 {[%clk 0:02:47]} 9. Bh4 {[%clk 0:02:41]}  g5 {[%clk 0:02:36]} 10. Bg3 {[%clk 0:02:39]}  Bg7 {[%clk 0:02:36]} 11. Nxc6 {[%clk 0:02:35]}  bxc6 {[%clk 0:02:37]} 12. f3 {[%clk 0:02:34]}  Qb6 {[%clk 0:02:01]} 13. O-O-O {[%clk 0:02:29]}  Rb8 {[%clk 0:01:38]} 14. b3 {[%clk 0:01:44]}  Qa5 {[%clk 0:01:23]} 15. Na4 {[%clk 0:01:28]}  Qxa4 {[%clk 0:01:16]} 16. bxa4 {[%clk 0:01:27]}  Bb2+ {[%clk 0:01:15]} 17. Kb1 {[%clk 0:01:27]}  Bc3+ {[%clk 0:01:08]} 18. Kc1 {[%clk 0:01:27]}  Bb2+ {[%clk 0:00:35]} 19. Kb1 {[%clk 0:01:26]}  Bc3+ {[%clk 0:00:35]} 20. Kc1 {[%clk 0:01:15]}  Bb2+ {[%clk 0:00:35]} 1/2-1/2


[Site "https://www.chess.com"]

[Event "Titled Tuesday Blitz August 22 Early 2023"]
[White "Girsh, Daniel"]
[Black "Sun, Rick"]
[WhiteFideId "30949190"]
[BlackFideId "30909481"]
[WhiteElo "2441"]
[BlackElo "2631"]
[Result "1-0"]
[Round "4"]
[TimeControl "180+1"]
[Date "2023.08.22"]
[WhiteClock "0:01:07"]
[BlackClock "0:00:00"]
[Board "98"]

1. c4 {[%clk 0:03:00]}  d6 {[%clk 0:03:00]} 2. d4 {[%clk 0:02:54]}  Nf6 {[%clk 0:03:01]} 3. Nc3 {[%clk 0:02:53]}  g6 {[%clk 0:03:01]} 4. e4 {[%clk 0:02:53]}  Bg7 {[%clk 0:03:01]} 5. Be2 {[%clk 0:02:53]}  O-O {[%clk 0:03:02]} 6. Nf3 {[%clk 0:02:54]}  e5 {[%clk 0:03:01]} 7. O-O {[%clk 0:02:54]}  Nc6 {[%clk 0:03:02]} 8. Be3 {[%clk 0:02:53]}  exd4 {[%clk 0:02:58]} 9. Nxd4 {[%clk 0:02:53]}  Re8 {[%clk 0:02:59]} 10. f3 {[%clk 0:02:52]}  Bd7 {[%clk 0:02:55]} 11. Qd2 {[%clk 0:02:51]}  Nh5 {[%clk 0:02:49]} 12. Rad1 {[%clk 0:02:49]}  Qh4 {[%clk 0:02:39]} 13. Nxc6 {[%clk 0:02:41]}  bxc6 {[%clk 0:01:53]} 14. Bf2 {[%clk 0:02:39]}  Qe7 {[%clk 0:01:47]} 15. c5 {[%clk 0:02:29]}  Be5 {[%clk 0:01:37]} 16. g3 {[%clk 0:02:23]}  Bh3 {[%clk 0:01:35]} 17. Rfe1 {[%clk 0:02:22]}  Rad8 {[%clk 0:01:22]} 18. cxd6 {[%clk 0:02:20]}  cxd6 {[%clk 0:01:18]} 19. f4 {[%clk 0:02:17]}  Bxc3 {[%clk 0:01:01]} 20. Qxc3 {[%clk 0:02:17]}  Qxe4 {[%clk 0:01:01]} 21. Bf3 {[%clk 0:02:13]}  Qf5 {[%clk 0:00:55]} 22. Bxc6 {[%clk 0:02:08]}  Rxe1+ {[%clk 0:00:52]} 23. Rxe1 {[%clk 0:02:09]}  Nf6 {[%clk 0:00:39]} 24. Bd4 {[%clk 0:01:56]}  Nd5 {[%clk 0:00:21]} 25. Qa5 {[%clk 0:01:43]}  Nb6 {[%clk 0:00:12]} 26. Qxf5 {[%clk 0:01:39]}  Bxf5 {[%clk 0:00:11]} 27. Re7 {[%clk 0:01:39]}  Rc8 {[%clk 0:00:07]} 28. Bf3 {[%clk 0:01:30]}  Kf8 {[%clk 0:00:07]} 29. Rxa7 {[%clk 0:01:29]}  Nc4 {[%clk 0:00:07]} 30. Ra8 {[%clk 0:01:26]}  Nd2 {[%clk 0:00:05]} 31. Rxc8+ {[%clk 0:01:25]}  Bxc8 {[%clk 0:00:06]} 32. Bd5 {[%clk 0:01:25]}  Be6 {[%clk 0:00:07]} 33. Bxe6 {[%clk 0:01:24]}  fxe6 {[%clk 0:00:07]} 34. Kf2 {[%clk 0:01:23]}  Ke7 {[%clk 0:00:07]} 35. Ke2 {[%clk 0:01:23]}  Nc4 {[%clk 0:00:07]} 36. b3 {[%clk 0:01:23]}  Na3 {[%clk 0:00:06]} 37. Kd3 {[%clk 0:01:22]}  Kd7 {[%clk 0:00:06]} 38. Bf2 {[%clk 0:01:21]}  Kc6 {[%clk 0:00:06]} 39. g4 {[%clk 0:01:19]}  h5 {[%clk 0:00:06]} 40. h3 {[%clk 0:01:20]}  hxg4 {[%clk 0:00:05]} 41. hxg4 {[%clk 0:01:21]}  Kd5 {[%clk 0:00:05]} 42. Be3 {[%clk 0:01:20]}  Kc6 {[%clk 0:00:05]} 43. Bc1 {[%clk 0:01:20]}  Nb5 {[%clk 0:00:05]} 44. a4 {[%clk 0:01:21]}  Nc7 {[%clk 0:00:05]} 45. b4 {[%clk 0:01:21]}  e5 {[%clk 0:00:05]} 46. b5+ {[%clk 0:01:20]}  Kd5 {[%clk 0:00:04]} 47. fxe5 {[%clk 0:01:17]}  dxe5 {[%clk 0:00:04]} 48. Be3 {[%clk 0:01:16]}  Ne6 {[%clk 0:00:02]} 49. a5 {[%clk 0:01:15]}  Nc7 {[%clk 0:00:02]} 50. b6 {[%clk 0:01:13]}  Na6 {[%clk 0:00:02]} 51. Kc3 {[%clk 0:01:12]}  e4 {[%clk 0:00:01]} 52. Bf2 {[%clk 0:01:11]}  Kc6 {[%clk 0:00:02]} 53. Kc4 {[%clk 0:01:11]}  Nb8 {[%clk 0:00:02]} 54. Kd4 {[%clk 0:01:09]}  Kb5 {[%clk 0:00:02]} 55. Kxe4 {[%clk 0:01:08]}  Kxa5 {[%clk 0:00:03]} 56. Ke5 {[%clk 0:01:08]}  Nd7+ {[%clk 0:00:02]} 57. Ke6 {[%clk 0:01:08]}  Nb8 {[%clk 0:00:01]} 58. Kf6 {[%clk 0:01:08]}  Kb5 {[%clk 0:00:01]} 59. Kxg6 {[%clk 0:01:07]}  Kc6 {[%clk 0:00:02]} 60. g5 {[%clk 0:01:08]}  Nd7 {[%clk 0:00:03]} 61. Kf7 {[%clk 0:01:08]}  Nxb6 {[%clk 0:00:00]} 62. Bxb6 {[%clk 0:01:07]} 1-0


[Site "https://www.chess.com"]